{"text_format":"3","workbook":"xlsx","n_sheets":4,"sheets":["Inköpslista","Budgetfördelning","Att göra-lista","Delningslista"],"not_rendered":{"charts":2,"images":2,"defined_names":12},"read":"whole","date_system":"1900"}

{"sheet":"Inköpslista","index":0,"n_rows":25,"n_cols":8,"rows_kept":25,"merged":[[2,1,2,7],[3,1,3,2],[4,4,6,7]]}
[null,"Skolstart","Dagbok"]
[]
[null,"Följ upp inköpen och jämför mot budgeterade summor som angivits i Budgetfördelning."]
[null,"Sammanfattning av budget",null,null,{"$f":"\"Inköpsförlopp (\"&COUNTIFS(Checklista[Köpta], \">0\")&\" av \"&COUNTIFS(Checklista[Att köpa], \">0\")&\")\"","v":"Inköpsförlopp (1 av 6)"}]
[null,"Budget",{"v":1500,"d":"1,500.00 kr"},null,{"$f":"IFERROR(COUNTIFS(Checklista[Att köpa],\">0\",Checklista[Köpta],\">0\")/AntalObjektAttKöpa,0)","v":{"v":0.16666666666666666,"d":"17%"}}]
[null,"Inköpslista (totalt)",{"$f":"IFERROR(SUM(ChecklistaTotal), \"\")","v":{"v":365,"d":"365.00 kr"}}]
[null,"Pengar kvar",{"$f":"IFERROR(C5-C6, \"\")","v":{"v":1135,"d":"1,135.00 kr"}}]
[null,"Inköpslista"]
[null,"Objekt","Kategori","Ant.","Att köpa","Kostnad","Köpta","Totalsumma"]
[null,"Matematik","Läroböcker",1,1,{"v":55,"d":"55.00 kr"},1,{"$f":"IFERROR(Checklista[Ant.]*Checklista[Kostnad], \"\")","v":{"v":55,"d":"55.00 kr"}}]
[null,"Engelska","Läroböcker",1,1,null,null,{"$f":"IFERROR(Checklista[Ant.]*Checklista[Kostnad], \"\")","v":0}]
[null,"Ryggsäck","Material",1,null,{"v":30,"d":"30.00 kr"},null,{"$f":"IFERROR(Checklista[Ant.]*Checklista[Kostnad], \"\")","v":{"v":30,"d":"30.00 kr"}}]
[null,"Miniräknare","Material",1,{"$nulls":3},{"$f":"IFERROR(Checklista[Ant.]*Checklista[Kostnad], \"\")","v":0}]
[null,"Överstrykningspennor","Material",3,{"$nulls":3},{"$f":"IFERROR(Checklista[Ant.]*Checklista[Kostnad], \"\")","v":0}]
[null,"Uniform","Kläder",2,1,{"v":100,"d":"100.00 kr"},null,{"$f":"IFERROR(Checklista[Ant.]*Checklista[Kostnad], \"\")","v":{"v":200,"d":"200.00 kr"}}]
[null,"Skjorta, knappar","Kläder",4,{"$nulls":3},{"$f":"IFERROR(Checklista[Ant.]*Checklista[Kostnad], \"\")","v":0}]
[null,"Skjorta, t-tröja","Kläder",5,{"$nulls":3},{"$f":"IFERROR(Checklista[Ant.]*Checklista[Kostnad], \"\")","v":0}]
[null,"Kortbyxor","Kläder",2,{"$nulls":3},{"$f":"IFERROR(Checklista[Ant.]*Checklista[Kostnad], \"\")","v":0}]
[null,"Skor","Kläder",2,1,null,null,{"$f":"IFERROR(Checklista[Ant.]*Checklista[Kostnad], \"\")","v":0}]
[null,"Strumpor","Kläder",10,{"$nulls":3},{"$f":"IFERROR(Checklista[Ant.]*Checklista[Kostnad], \"\")","v":0}]
[null,"Vårjacka","Kläder",1,1,{"v":80,"d":"80.00 kr"},null,{"$f":"IFERROR(Checklista[Ant.]*Checklista[Kostnad], \"\")","v":{"v":80,"d":"80.00 kr"}}]
[null,"Koftor","Kläder",1,{"$nulls":3},{"$f":"IFERROR(Checklista[Ant.]*Checklista[Kostnad], \"\")","v":0}]
[null,"Tröjor","Kläder",1,{"$nulls":3},{"$f":"IFERROR(Checklista[Ant.]*Checklista[Kostnad], \"\")","v":0}]
[null,"Underkläder","Kläder",10,{"$nulls":3},{"$f":"IFERROR(Checklista[Ant.]*Checklista[Kostnad], \"\")","v":0}]
[null,"Vinterjacka","Kläder",1,1,null,null,{"$f":"IFERROR(Checklista[Ant.]*Checklista[Kostnad], \"\")","v":0}]

{"sheet":"Budgetfördelning","index":1,"n_rows":6,"n_cols":3,"rows_kept":6}
[null,"Budgetfördelning"]
[null,"Lägg till kategorier och budgetbelopp för att jämföra med din inköpslista."]
[null,"Kategori","Totalsumma"]
[null,"Kläder",{"$f":"IFERROR(SUMIFS(Checklista[Totalsumma],Checklista[Kategori],Kategori[Kategori]), \"\")","v":{"v":280,"d":"280.00 kr"}}]
[null,"Material",{"$f":"IFERROR(SUMIFS(Checklista[Totalsumma],Checklista[Kategori],Kategori[Kategori]), \"\")","v":{"v":30,"d":"30.00 kr"}}]
[null,"Läroböcker",{"$f":"IFERROR(SUMIFS(Checklista[Totalsumma],Checklista[Kategori],Kategori[Kategori]), \"\")","v":{"v":55,"d":"55.00 kr"}}]

{"sheet":"Att göra-lista","index":2,"n_rows":22,"n_cols":3,"rows_kept":22}
[null,"Att göra-lista"]
[null,"Håll koll på allt du måste göra innan skolan börjar."]
[null,"Klar","Uppgift"]
[null,"x","Fyll i alla registreringsformulär"]
[null,null,"Boka möte med skolsyster om nödvändigt"]
[null,null,"Bekräfta alla vaccineringar"]
[null,null,"Begär lista med instruktioner för alla obligatoriska mediciner från läkare"]
[null,null,"Studera skolans regler för klädsel"]
[null,null,"Skaffa en lista över material som behövs"]
[null,null,"Träffa läraren"]
[null,null,"Ta reda på hur läraren önskar bli kontaktad (telefon, e-post, brev)"]
[null,null,"Besök skolan tillsammans med ditt barn"]
[null,null,"Se till att ditt barn kan adressen hem, samt hem- och jobbtelefonnumren"]
[null,null,"Ordna transport och utse en säker plats där ni kan träffas, samt öva på detta"]
[null,null,"Gå vägen till och från skolan med barnens några gånger om skolan kan nås till fots"]
[null,null,"Låt ditt barn träffa alla förare om samåkning används"]
[null,null,"Ta reda på busshållplatser och tidtabell om barnet ska åka buss"]
[null,null,"Ordna barnpassning/passning efter skolan"]
[null,null,"Planera för frukost, lunch och mellanmål på förmiddag och eftermiddag"]
[null,null,"Bestäm var och när läxor ska göras"]
[null,null,"Bestäm rutiner för sänggående minst två veckor före skolstart"]
[null,null,"Sammanställ ett schema med alla andra evenemang och aktiviteter som rör skolan"]

{"sheet":"Delningslista","index":3,"n_rows":4,"n_cols":5,"rows_kept":4}
[null,"Delningslista",null,null,"Dela den här listan med andra så att de kan hjälpa till. Välj Dela uppe till höger eller tryck på ALT och sedan XU. Spara filen på OneDrive och skicka länken till dina vänner."]
[null,"Namn","E-post","Delad?"]
[null,"Person 1","någon@e-post.se","Ja"]
[null,"Person 2","någon@e-post.se","Nej"]